fUSD/lending_fUSD_20260205
["ID","MTS","AMOUNT","RATE_DAILY","PERIOD"]
[404614077,1770328245761,-500.0,0.00043287,120]
[404614078,1770328245771,-568.75248352,0.00043287,120]
[404614079,1770328245780,-518.73340718,0.00043287,120]
[404614080,1770328245794,-500.0,0.00043287,120]
[404614081,1770328245803,-500.0,0.00043287,120]
[404614082,1770328245812,-500.0,0.00043287,120]
[404614083,1770328245827,-500.0,0.00043287,120]
[404614084,1770328245837,-500.0,0.00043287,120]
[404614085,1770328245846,-503.82021233,0.00043287,120]
[404614086,1770328245857,-500.0,0.00043287,120]
[404614087,1770328245866,-500.0,0.00043287,120]
[404614088,1770328245876,-500.0,0.00043287,120]
[404614089,1770328245884,-500.0,0.00043287,120]
[404614090,1770328245893,-500.0,0.00043287,120]
[404614091,1770328245902,-500.0,0.00043287,120]
[404614092,1770328245912,-569.73755602,0.00043287,120]
[404614094,1770328245922,-500.0,0.00043287,120]
[404614095,1770328245931,-500.0,0.00043287,120]
[404614096,1770328245940,-500.0,0.00043287,120]
[404614097,1770328245949,-500.0,0.00043287,120]
[404614098,1770328245958,-500.0,0.00043287,120]
[404614099,1770328245968,-261.55061437,0.00043287,120]
[404614100,1770328245977,-551.61298346,0.00043287,120]
[404614101,1770328245986,-500.0,0.00043287,120]
[404614102,1770328245996,-500.0,0.00043287,120]
[404614103,1770328246005,-500.0,0.00043287,120]
[404614104,1770328246014,-500.0,0.00043287,120]
[404614105,1770328246023,-500.0,0.00043287,120]
[404614106,1770328246033,-500.0,0.00043287,120]
[404614107,1770328246042,-153.33747606,0.00043287,120]
[404614108,1770328246052,-500.0,0.00043287,120]
[404614109,1770328246061,-500.0,0.00043287,120]
[404614110,1770328246074,-500.0,0.00043287,120]
[404614111,1770328246083,-500.0,0.00043287,120]
[404614112,1770328246092,-500.0,0.00043287,120]
[404614113,1770328246102,-500.0,0.00043287,120]
[404614114,1770328246111,-500.0,0.00043287,120]
[404614115,1770328246121,-268.43096613,0.00043287,120]
[404614116,1770328246130,-610.47,0.00043287,120]
[404614117,1770328246140,-610.47,0.00043287,120]
[404614118,1770328246149,-610.47,0.00043287,120]
[404614119,1770328246159,-610.47,0.00043287,120]
[404614120,1770328246168,-500.0,0.00043287,120]
[404614121,1770328246177,-500.0,0.00043287,120]
[404614122,1770328246187,-500.0,0.00043287,120]
[404614123,1770328246196,-500.0,0.00043287,120]
[404614124,1770328246205,-500.0,0.00043287,120]
[404614125,1770328246215,-500.0,0.00043287,120]
[404614126,1770328246224,-500.0,0.00043287,120]
[404614127,1770328246234,-500.0,0.00043287,120]
[404614128,1770328246243,-500.0,0.00043287,120]
[404614129,1770328246252,-500.0,0.00043287,120]
[404614130,1770328246262,-500.0,0.00043287,120]
[404614131,1770328246271,-500.0,0.00043287,120]
[404614132,1770328246281,-500.0,0.00043287,120]
[404614133,1770328246290,-500.0,0.00043287,120]
[404614134,1770328246299,-500.0,0.00043287,120]
[404614135,1770328246309,-560.58994917,0.00043287,120]
[404614136,1770328246318,-528.95241517,0.00043287,120]
[404614137,1770328246332,-500.0,0.00043287,120]
[404614138,1770328246342,-500.0,0.00043287,120]
[404614139,1770328246351,-449.09664779,0.00043287,120]
[404614140,1770328246361,-500.0,0.00043287,120]
[404614141,1770328246371,-165.98018355,0.00043287,120]
[404614142,1770328246521,-500.0,0.00043287,120]
[404614143,1770328246531,-500.0,0.00043287,120]
[404614144,1770328246540,-500.0,0.00043287,120]
[404614145,1770328246550,-516.18373538,0.00043287,120]
[404614146,1770328246559,-500.0,0.00043287,120]
[404614147,1770328246569,-500.0,0.00043287,120]
[404614148,1770328246582,-500.0,0.00043287,120]
[404614149,1770328246592,-590.53523646,0.00043287,120]
[404614150,1770328246601,-500.0,0.00043287,120]
[404614151,1770328246611,-619.8500902,0.00043287,120]
[404614152,1770328246630,-500.0,0.00043287,120]
[404614153,1770328246643,-500.0,0.00043287,120]
[404614154,1770328246653,-500.0,0.00043287,120]
[404614155,1770328246664,-500.0,0.00043287,120]
[404614156,1770328246675,-500.0,0.00043287,120]
[404614157,1770328246686,-500.0,0.00043287,120]
[404614158,1770328246696,-500.0,0.00043287,120]
[404614159,1770328246706,-500.0,0.00043287,120]
[404614160,1770328246716,-170.69537709,0.00043287,120]
[404614161,1770328246727,-500.0,0.00043287,120]
[404614162,1770328246737,-500.0,0.00043287,120]
[404614163,1770328246747,-234.83365501,0.00043287,120]
[404614164,1770328246757,-500.0,0.00043287,120]
[404614165,1770328246767,-500.0,0.00043287,120]
[404614166,1770328246779,-500.0,0.00043287,120]
[404614167,1770328246791,-500.0,0.00043287,120]
[404614168,1770328246801,-800.0,0.00043288,120]
[404614169,1770328246810,-8100.0,0.000433,15]
[404614170,1770328246823,-163.84,0.000433,30]
[404614171,1770328246833,-500.0,0.00043317,30]
[404614172,1770328246843,-200.0,0.0004332,7]
[404614173,1770328246852,-200.0,0.0004332,7]
[404614174,1770328246864,-507.0,0.00043364,25]
[404614175,1770328246874,-200.0,0.00043373,5]
[404614176,1770328246884,-1600.0,0.000434,15]
[404614177,1770328246894,-192.82,0.000434,120]
[404614178,1770328246904,-3488.0,0.00043424,16]
[404614180,1770328246914,-70790.0,0.00043437,30]
[404614183,1770328246924,-1451.56118712,0.000435,30]
[404614185,1770328246934,-1600.0,0.000435,15]
[404614187,1770328246943,-500.0,0.00043536,60]
[404614189,1770328246953,-500.0,0.00043536,60]
[404614190,1770328246962,-195.80073138,0.0004357,18]
[404614191,1770328246971,-3488.0,0.00043578,16]
[404614192,1770328246981,-833.0,0.00043578,16]
[404614193,1770328246995,-890.49,0.00043591,30]
[404614194,1770328247005,-151.0,0.000436,120]
[404614196,1770328247015,-1600.0,0.000436,15]
[404614198,1770328247025,-207.33206215,0.00043617,60]
[404614201,1770328247035,-161.09110894,0.00043617,60]
[404614203,1770328247044,-153.33737461,0.00043617,60]
[404614205,1770328247054,-500.0,0.00043617,60]
[404614207,1770328247064,-500.0,0.00043617,60]
[404614208,1770328247076,-500.0,0.00043617,60]
[404614209,1770328247086,-150.0,0.00043617,60]
[404614210,1770328247096,-500.0,0.00043617,60]
[404614211,1770328247105,-500.0,0.00043617,60]
[404614212,1770328247115,-154.28452679,0.00043617,60]
[404614213,1770328247124,-500.0,0.00043617,60]
[404614214,1770328247134,-461.0,0.00043617,60]
[404614215,1770328247144,-500.0,0.00043617,60]
[404614216,1770328247153,-273.38131323,0.00043617,2]
[404614217,1770328247162,-150.0,0.00043617,60]
[404614218,1770328247172,-500.0,0.00043617,60]
[404614220,1770328247181,-153.34858409,0.00043617,60]
[404614222,1770328247195,-150.0,0.00043617,60]
[404614223,1770328247205,-150.0,0.00043617,60]
[404614224,1770328247215,-150.0,0.00043617,60]
[404614225,1770328247225,-150.0,0.00043617,2]
[404614226,1770328247235,-150.0,0.00043617,2]
[404614227,1770328247245,-150.0,0.00043617,60]
[404614228,1770328247255,-201.43491023,0.00043617,60]
[404614229,1770328247265,-500.0,0.00043672,60]
[404614230,1770328247275,-500.0,0.00043672,60]
[404614231,1770328247285,-500.0,0.00043672,60]
[404614232,1770328247296,-150.0,0.00043672,60]
[404614233,1770328247306,-500.0,0.00043672,60]
[404614234,1770328247315,-505.34438598,0.00043672,60]
[404614235,1770328247328,-507.81318482,0.00043672,60]
[404614237,1770328247338,-461.0,0.00043672,60]
[404614238,1770328247347,-500.0,0.00043672,60]
[404614239,1770328247357,-150.0,0.00043672,60]
[404614240,1770328247367,-500.0,0.00043672,60]
[404614241,1770328247377,-150.0,0.00043672,60]
[404614242,1770328247390,-150.0,0.00043672,60]
[404614243,1770328247400,-203.33798967,0.00043672,60]
[404614244,1770328247409,-233.53357207,0.00043672,60]
[404614245,1770328247419,-150.0,0.00043682,120]
[404614246,1770328247429,-1600.0,0.000437,15]
[404614247,1770328247439,-341.14964025,0.00043727,60]
[404614248,1770328247448,-500.0,0.00043727,60]
[404614249,1770328247458,-500.0,0.00043727,60]
[404614250,1770328247467,-150.0,0.00043727,60]
[404614251,1770328247477,-500.0,0.00043727,60]
[404614252,1770328247487,-461.0,0.00043727,60]
[404614253,1770328247496,-500.0,0.00043727,60]
[404614254,1770328247506,-151.82560761,0.00043727,60]
[404614255,1770328247516,-402.62643413,0.00043727,60]
[404614256,1770328247526,-150.0,0.00043727,60]
[404614257,1770328247536,-200.0,0.00043727,60]
[404614258,1770328247546,-500.0,0.00043781,60]
[404614259,1770328247555,-500.0,0.00043781,60]
[404614260,1770328247565,-500.0,0.00043781,60]
[404614261,1770328247578,-150.61707435,0.00043781,60]
[404614262,1770328247591,-461.0,0.00043781,60]
[404614263,1770328247601,-500.0,0.00043781,60]
[404614264,1770328247611,-207.2957654,0.00043781,60]
[404614265,1770328247620,-160.0,0.000438,30]
[404614266,1770328247630,-2037.0,0.000438,15]
[404614267,1770328247640,-2000.0,0.00043809,120]
[404614268,1770328247649,-2000.0,0.00043809,120]
[404614269,1770328247659,-2000.0,0.00043809,120]
[404614270,1770328247669,-2000.0,0.00043809,120]
[404614271,1770328247678,-1239.886,0.00043809,120]
[404614272,1770328247687,-1000.0,0.00043809,90]
[404614273,1770328247697,-1000.0,0.00043809,90]
[404614274,1770328247706,-1000.0,0.00043809,90]
[404614275,1770328247716,-1000.0,0.00043809,90]
[404614276,1770328247725,-1000.0,0.00043809,90]
[404614277,1770328247735,-366.789,0.00043809,90]
[404614278,1770328247745,-150.0,0.00043834,2]
[404614279,1770328247754,-800.0,0.00043836,120]
[404614280,1770328247764,-500.0,0.00043836,120]
[404614281,1770328247774,-800.0,0.00043836,26]
[404614282,1770328247789,-214.91941729,0.00043836,120]
[404614283,1770328247799,-159.29048587,0.00043836,60]
[404614284,1770328247809,-402.26890756,0.00043836,60]
[404614285,1770328247818,-500.0,0.00043836,60]
[404614286,1770328247834,-461.0,0.00043836,60]
[404614287,1770328247844,-543.64643338,0.00043836,60]
[404614288,1770328247854,-610.47,0.00043869,120]
[404614289,1770328247865,-500.0,0.00043869,120]
[404614290,1770328247874,-4671.60257418,0.0004387,12]
[404614291,1770328247884,-500.0,0.00043875,120]
[404614292,1770328247894,-500.0,0.00043875,120]
[404614293,1770328247904,-70790.0,0.00043875,30]
[404614294,1770328247914,-257.51146536,0.00043891,60]
[404614295,1770328247924,-461.0,0.00043891,60]
[404614296,1770328247934,-461.0,0.00043946,60]
[404614297,1770328247944,-195.80073138,0.00043952,18]
[404614298,1770328247954,-171.53341242,0.00043952,120]
[404614299,1770328247964,-197.44773227,0.00043952,9]
[404614300,1770328247973,-1280.98224178,0.00043953,2]
[404614301,1770328247985,-1280.98224178,0.00043953,2]
[404614302,1770328247995,-197.44773226,0.00043953,9]
[404614303,1770328248005,-1917.66324431,0.00043953,15]
[404614304,1770328248015,-4873.5621541,0.00043968,2]
[404614305,1770328248025,-500.0,0.00043999,120]
[404614306,1770328248034,-834.16,0.00043999,120]
[404614307,1770328248044,-150.0,0.00044,73]
[404614308,1770328248054,-150.0,0.00044,29]
[404614309,1770328248064,-253.0,0.00044,45]
[404614310,1770328248075,-461.0,0.00044001,60]
[404614311,1770328248085,-150.0,0.00044027,30]
[404614312,1770328248095,-150.0,0.00044029,30]
[404614313,1770328248105,-150.0,0.00044031,30]
[404614314,1770328248115,-150.0,0.00044032,30]
[404614315,1770328248124,-150.0,0.00044034,30]
[404614316,1770328248134,-150.0,0.00044035,30]
[404614317,1770328248143,-150.0,0.00044037,30]
[404614318,1770328248153,-150.0,0.00044039,30]
[404614319,1770328248162,-500.0,0.0004404,10]
[404614320,1770328248172,-150.0,0.0004404,30]
[404614321,1770328248181,-150.0,0.00044042,30]
[404614322,1770328248191,-150.0,0.00044044,30]
[404614323,1770328248201,-150.0,0.00044045,30]
[404614324,1770328248210,-150.0,0.00044047,30]
[404614325,1770328248220,-150.0,0.00044048,30]
[404614326,1770328248229,-505.22156271,0.00044049,120]
[404614327,1770328248239,-521.01,0.00044049,2]
[404614328,1770328248249,-521.01,0.00044049,2]
[404614329,1770328248259,-521.01,0.00044049,2]
[404614330,1770328248268,-500.0,0.00044049,120]
[404614331,1770328248278,-150.0,0.00044049,120]
[404614332,1770328248288,-500.0,0.00044049,120]
[404614333,1770328248297,-500.0,0.00044049,120]
[404614334,1770328248307,-500.0,0.00044049,120]
[404614335,1770328248316,-500.0,0.00044049,120]
[404614336,1770328248333,-500.0,0.00044049,120]
[404614337,1770328248342,-260.97626019,0.00044049,120]
[404614338,1770328248352,-610.47,0.00044049,120]
[404614339,1770328248362,-610.47,0.00044049,120]
[404614340,1770328248380,-500.0,0.00044049,120]
[404614341,1770328248391,-500.0,0.00044049,120]
[404614342,1770328248401,-166.78804532,0.00044049,120]
[404614343,1770328248410,-500.0,0.00044049,120]
[404614344,1770328248420,-500.0,0.00044049,120]
[404614345,1770328248430,-500.0,0.00044049,120]
[404614346,1770328248439,-500.0,0.00044049,120]
[404614347,1770328248449,-3010.5356105,0.00044049,2]
[404614348,1770328248459,-500.0,0.00044049,120]
[404614349,1770328248468,-500.0,0.00044049,120]
[404614350,1770328248478,-150.0,0.0004405,30]
[404614351,1770328248488,-300.0,0.00044051,30]
[404614352,1770328248497,-666.0,0.00044051,30]
[404614353,1770328248507,-521.01,0.00044051,2]
[404614354,1770328248516,-521.01,0.00044051,2]
[404614355,1770328248526,-521.01,0.00044051,2]
[404614356,1770328248535,-521.01,0.00044051,2]
[404614357,1770328248544,-521.01,0.00044051,2]
[404614358,1770328248553,-521.01,0.00044051,2]
[404614359,1770328248563,-521.01,0.00044051,2]
[404614360,1770328248576,-521.01,0.00044051,2]
[404614361,1770328248585,-521.01,0.00044051,2]
[404614362,1770328248595,-521.01,0.00044051,2]
[404614363,1770328248604,-521.01,0.00044051,2]
[404614364,1770328248614,-521.01,0.00044051,2]
[404614365,1770328248623,-521.01,0.00044051,2]
[404614366,1770328248632,-521.01,0.00044051,2]
[404614367,1770328248642,-521.01,0.00044051,2]
[404614368,1770328248652,-521.01,0.00044051,2]
[404614369,1770328248661,-521.01,0.00044051,2]
[404614370,1770328248671,-500.0,0.00044051,120]
[404614371,1770328248680,-556.50831427,0.00044051,120]
[404614372,1770328248690,-610.47,0.00044051,120]
[404614373,1770328248699,-610.47,0.00044051,120]
[404614374,1770328248709,-610.47,0.00044051,120]
[404614375,1770328248719,-610.47,0.00044051,120]
[404614376,1770328248729,-610.47,0.00044051,120]
[404614377,1770328248738,-610.47,0.00044051,120]
[404614378,1770328248748,-610.47,0.00044051,120]
[404614379,1770328248761,-610.47,0.00044051,120]
[404614380,1770328248772,-610.47,0.00044051,120]
[404614381,1770328248781,-610.47,0.00044051,120]
[404614382,1770328248794,-610.47,0.00044051,120]
[404614383,1770328248805,-610.47,0.00044051,120]
[404614384,1770328248815,-610.47,0.00044051,120]
[404614385,1770328248830,-610.47,0.00044051,120]
[404614386,1770328248841,-610.47,0.00044051,120]
[404614387,1770328248851,-610.47,0.00044051,120]
[404614388,1770328248862,-610.67343847,0.00044051,120]
[404614389,1770328248871,-500.0,0.00044051,120]
[404614390,1770328248881,-500.0,0.00044051,120]
[404614391,1770328248891,-500.0,0.00044051,120]
[404614392,1770328248900,-587.30616722,0.00044051,120]
[404614393,1770328248910,-500.0,0.00044051,120]
[404614394,1770328248919,-500.0,0.00044051,120]
[404614395,1770328248928,-408.62801519,0.00044051,120]
[404614396,1770328248938,-500.0,0.00044051,120]
[404614397,1770328248948,-500.0,0.00044051,120]
[404614398,1770328248958,-500.0,0.00044051,120]
[404614399,1770328248968,-217.39763339,0.00044051,120]
[404614400,1770328248977,-50000.0,0.00044052,37]
[404614401,1770328249079,-50000.0,0.00044052,38]
[404614402,1770328249090,-50000.0,0.00044052,39]
[404614403,1770328249099,-50000.0,0.00044052,40]
[404614404,1770328249109,-50000.0,0.00044052,42]
[404614405,1770328249122,-50000.0,0.00044052,43]
[404614406,1770328249132,-50000.0,0.00044052,57]
[404614407,1770328249141,-50000.0,0.00044052,58]
[404614408,1770328249151,-50000.0,0.00044052,59]
[404614409,1770328249161,-50000.0,0.00044052,62]
[404614410,1770328249171,-150.0,0.00044052,30]
[404614411,1770328249180,-151.0,0.00044052,120]
[404614412,1770328249189,-262.037975,0.00044052,120]
[404614413,1770328249199,-712.74526092,0.00044052,120]
[404614414,1770328249209,-1735.74022289,0.00044052,63]
[404614415,1770328249220,-226.97189164,0.00044053,2]
[404614416,1770328249229,-158.35886356,0.00044053,2]
[404614417,1770328249239,-23329.01900478,0.00044053,2]
[404614418,1770328249248,-719597.1782079,0.00044053,10]
[404614419,1770328249360,-4226.3795467,0.00044053,10]
[404614420,1770328249417,-500.0,0.00043287,120]
[404614421,1770328249425,-1361.41983835,0.00044053,10]
[404614422,1770328249435,-568.9420744,0.00044053,10]
[404614423,1770328249451,-473.93335833,0.00044053,10]
[404614424,1770328249572,-225.86489094,0.000412,120]
[404614425,1770328249583,-32.33510906,0.00043287,120]
[404614426,1770328249602,-512.6900035,0.00020038,2]
[404614427,1770328249613,-853.3099965,0.00020038,2]
[404614428,1770328249622,-295.3000035,0.00043287,120]
[404614429,1770328249695,-156.7147459,0.00043287,120]
[404614430,1770328249707,-15.65014154,0.00043287,120]
[404614431,1770328249716,-500.0,0.00043287,120]
[404614432,1770328249726,-500.0,0.00043287,120]
[404614433,1770328249735,-500.0,0.00043287,120]
[404614434,1770328249746,-177.21124217,0.00043287,120]
[404614435,1770328249755,-5817.48820889,0.00044053,10]
[404614436,1770328249923,-18728.72,0.00044053,10]
[404614437,1770328249992,-88422.06937409,0.00044053,10]
[404614438,1770328250019,-389.2471,0.00044053,10]
[404614439,1770328281201,157.09559265,0.000146,2]
[404614440,1770328333742,500.0,0.000146,2]
[404614441,1770328336237,717.62145673,0.00016,30]
[404614442,1770328337518,492.84514101,0.00016,30]
[404614443,1770328346475,500.0,0.00016,30]
[404614444,1770328350892,862.7689052,0.00016,30]
[404614445,1770328352283,504.56403367,0.00016,30]
[404614446,1770328355208,500.0,0.00016,30]
[404614447,1770328355680,500.0,0.00016,30]
[404614448,1770328356151,500.0,0.00013,2]
[404614449,1770328356613,900.0,0.00013,2]
[404614450,1770328356661,3785.8026,0.00013405,2]
[404614451,1770328362947,4157.11180735,0.00013405,2]
[404614452,1770328362969,6532.65539265,0.00013405,2]
[404614453,1770328506741,500.0,0.000146,2]
[404614454,1770328648780,637.0411116,0.00016,30]
[404614460,1770329003903,8350.14,0.00021,120]
[404614461,1770329138924,-189.92,0.00018,2]
[404614462,1770329138955,-140.41824732,0.00018,2]
[404614463,1770329139013,-163.58175268,0.00018,2]
[404614464,1770329139042,-507.0,0.00018,2]
[404614465,1770329297053,-3566239.9422439,0.00044054,10]
[404614466,1770329297085,-1433760.0577561,0.00044054,10]
[404614467,1770329307559,-5000000.0,0.00044054,10]
[404614468,1770329334426,165.83,0.00016712,2]
[404614469,1770329365128,-250.0,0.00018206,2]
[404614470,1770329365152,-250.0,0.0001853,2]
[404614471,1770329365174,-157.61240216,0.0001853,2]
[404614472,1770329365195,-250.0,0.00020026,2]
[404614473,1770329365217,-157.61240216,0.00020968,2]
[404614474,1770329365239,-1097.54886292,0.00021,30]
[404614475,1770329365259,-220.0,0.00021918,45]
[404614476,1770329378823,1500.0,0.00021,2]
[404614477,1770329381265,1272.74967312,0.00021,2]
[404614478,1770329393759,38.25,0.00018,2]
[404614479,1770329393786,468.75,0.00018,2]
[404614491,1770329432170,-269.78869762,0.000209,2]
[404614493,1770329432180,-334.0,0.000209,2]
[404614495,1770329432193,-34.07130238,0.0002095,2]
[404614503,1770329432232,-215.92869762,0.0002095,2]
[404614505,1770329432253,-300.0,0.00020999,2]
[404614507,1770329432266,-300.0,0.00020999,2]
[404614508,1770329432277,-1200.0,0.00020999,2]
[404614509,1770329432286,-227.25032688,0.00021,2]
[404614510,1770329432296,-1500.0,0.00021,2]
[404614511,1770329432306,-1500.0,0.00021,2]
[404614512,1770329432317,-2374.302188,0.00021,2]
[404614513,1770329432327,-160.0,0.00021,2]
[404614514,1770329432336,-250.0,0.00021738,2]
[404614515,1770329432345,-420.0,0.00022842,2]
[404614516,1770329432356,-480.0,0.00022951,2]
[404614517,1770329432366,-250.0,0.0002299,2]
[404614518,1770329432379,-350.82,0.00023006,2]
[404614519,1770329432388,-150.99,0.00023006,2]
[404614520,1770329432398,-300.0,0.0002312,2]
[404614521,1770329432409,-212.0,0.00023121,2]
[404614522,1770329432419,-6617.98098278,0.00023122,2]
[404614523,1770329432432,-391.88,0.00023122,2]
[404614524,1770329432452,-2990.12901722,0.00023122,2]
[404614525,1770329432462,-150.99,0.00023122,2]
[404614526,1770329432472,-299.99,0.00023122,7]
[404614527,1770329432481,-7010.88,0.00023122,2]
[404614528,1770329432491,-157.61240216,0.00023406,2]
[404614529,1770329432501,-500.0,0.00023463,2]
[404614530,1770329432510,-1000.0,0.00023536,2]
[404614531,1770329432519,-507.0,0.00023636,7]
[404614532,1770329432530,-200.0,0.00023687,2]
[404614533,1770329432540,-200.0,0.00023878,2]
[404614534,1770329432549,-2312.32,0.00024065,2]
[404614535,1770329432559,-246.0,0.00024583,2]
[404614537,1770329432568,-265.33,0.00024646,2]
[404614539,1770329432578,-150.0,0.00024658,2]
[404614542,1770329432588,-1541.0,0.00024836,2]
[404614543,1770329432597,-587.0,0.00024847,2]
[404614545,1770329432606,-739.0,0.00024885,2]
[404614546,1770329432615,-2500.0,0.00025112,2]
[404614547,1770329432628,-2300.35564985,0.00025198,2]
[404614548,1770329432637,-150.57659396,0.00025198,2]
[404614549,1770329432646,-1000.0,0.0002521,2]
[404614550,1770329432655,-500.0,0.00025211,2]
[404614551,1770329432666,-152.03924394,0.00025211,2]
[404614552,1770329432675,-500.0,0.00025211,2]
[404614553,1770329432685,-500.0,0.00025211,2]
[404614554,1770329432695,-500.0,0.00025211,2]
[404614555,1770329432705,-500.0,0.00025211,2]
[404614556,1770329432715,-500.0,0.00025211,2]
[404614557,1770329432724,-500.0,0.00025211,2]
[404614558,1770329432734,-500.0,0.00025211,2]
[404614559,1770329432743,-500.0,0.00025211,2]
[404614560,1770329432752,-500.0,0.00025211,2]
[404614561,1770329432762,-500.0,0.00025211,2]
[404614562,1770329432771,-500.0,0.00025211,2]
[404614563,1770329432781,-338.59808157,0.00025211,2]
[404614564,1770329432790,-500.0,0.00025211,2]
[404614565,1770329432799,-500.0,0.00025211,2]
[404614566,1770329432809,-500.0,0.00025211,2]
[404614567,1770329432818,-500.0,0.00025211,2]
[404614568,1770329432828,-500.0,0.00025211,2]
[404614569,1770329432838,-500.0,0.00025211,2]
[404614570,1770329432847,-500.0,0.00025211,2]
[404614571,1770329432857,-500.0,0.00025211,2]
[404614572,1770329432867,-500.0,0.00025211,2]
[404614573,1770329432882,-500.0,0.00025211,2]
[404614574,1770329432891,-500.0,0.00025211,2]
[404614575,1770329432901,-500.0,0.00025211,2]
[404614576,1770329432911,-500.0,0.00025211,2]
[404614577,1770329432920,-500.0,0.00025211,2]
[404614578,1770329432930,-500.0,0.00025211,2]
[404614579,1770329432939,-500.0,0.00025211,2]
[404614580,1770329432949,-500.0,0.00025211,2]
[404614581,1770329432959,-500.0,0.00025211,2]
[404614582,1770329432969,-500.0,0.00025211,2]
[404614583,1770329432978,-500.0,0.00025211,2]
[404614584,1770329432988,-500.0,0.00025211,2]
[404614585,1770329432998,-500.0,0.00025211,2]
[404614586,1770329433007,-500.0,0.00025211,2]
[404614587,1770329433017,-500.0,0.00025211,2]
[404614588,1770329433027,-500.0,0.00025211,2]
[404614589,1770329433037,-500.0,0.00025211,2]
[404614590,1770329433047,-500.0,0.00025211,2]
[404614591,1770329433057,-521.21602874,0.00025211,2]
[404614592,1770329433068,-500.0,0.00025211,2]
[404614593,1770329433078,-500.0,0.00025211,2]
[404614594,1770329433088,-500.0,0.00025211,2]
[404614595,1770329433097,-500.0,0.00025211,2]
[404614596,1770329433106,-258224.0549315,0.00025212,2]
[404614597,1770329433119,-645.79236201,0.00025212,2]
[404614598,1770329433138,-544.78180546,0.00025212,2]
[404614615,1770329438561,-1183.97152561,0.00023022,2]
[404614616,1770329438573,-6093.96534532,0.00023022,2]
[404614617,1770329438584,-1673.83844632,0.00023022,2]
[404614822,1770329440648,-684.16545354,0.00023022,2]
[404614824,1770329440659,-16167.85165608,0.00023022,2]
[404614826,1770329440671,-796.04788305,0.00023022,2]
[404614829,1770329440682,-498.56809228,0.00023022,2]
[404614847,1770329440845,-97774.7598706,0.00023022,2]
[404614849,1770329440857,-8104.33803723,0.00023022,2]
[404614851,1770329440868,-2680.44671247,0.00023022,2]
[404614854,1770329440879,-1290935.74647395,0.00023022,2]
[404614857,1770329440910,-6913.50557726,0.00023022,2]
[404614862,1770329440939,-4668.22674054,0.00023022,2]
[404615254,1770329446372,-355.434006,0.00023022,2]
[404615258,1770329446466,-15322.06698341,0.00023022,2]
[404615259,1770329446479,-3548.68314574,0.00023022,2]
[404615260,1770329446564,-3165.45,0.00023022,2]
[404615261,1770329446739,-817.63749,0.00023022,2]
[404615262,1770329446751,-523.49586585,0.00023022,2]
[404615263,1770329446762,-416.30793719,0.00023022,2]
[404615269,1770329447365,-294.79033992,0.00023022,2]
[404615270,1770329447377,-1137.79536712,0.00023022,2]
[404615271,1770329447391,-1269.88545203,0.00023022,2]
[404615272,1770329447406,-520.72754857,0.00023022,2]
[404615273,1770329447419,-832.13783438,0.00023022,2]
[404615306,1770329466600,241.49767884,0.000146,2]
[404615307,1770329466632,258.50232116,0.000146,2]